Cogmind - Beta 14 @@@ ROGUE MODE // 2024.11.21 @ 12:27:17 Player: Zane Result: Destroyed by VM-4QK(R) with Subdweller Laser Performance ------------- Evolutions (0) 0 Regions Visited (2) 400 Robots Destroyed (29) 145 Value Destroyed (648) 648 Prototype IDs (4) 80 Alien Tech Used (0) 0 Bonus (0) 0 TOTAL SCORE: 1273 Bonus ------- None Cogmind --------- Core Integrity 0/250 Matter 225/300 Energy 70/100 System Corruption 0% Temperature Cool (6) Movement Rolling (155) Ox5 Location -10/Subcaves Parts ------- > --- POWER (1) -------- (None) > --- PROPULSION (2) --- Wheel > --- UTILITY (2) ------ High-capacity Storage Unit Hardened Light Armor Plating > --- WEAPON (2) ------- Subdweller Beam Cannon > --- INVENTORY (20) --- Subdweller Power Source Subdweller Power Source Subdweller Monowheel Heat Sink Large Storage Unit High-capacity Matter Pod (200) Structural Scanner Signal Interpreter Improved Terrain Scanner Seismic Detector Hardened Light Armor Plating Subdweller Machine Gun Scrap Shield Fragment (48) Peak State ------------ > --- POWER ------------ Heavy Ion Engine > --- PROPULSION ------- Aluminum Leg Aluminum Leg > --- UTILITY ---------- High-capacity Storage Unit Hardened Light Armor Plating > --- WEAPON ----------- Riot Gun Beam Cannon > --- INVENTORY -------- Subdweller Power Source Subdweller Power Source Light Treads Wheel Subdweller Monowheel Subdweller Monowheel Heat Sink Large Storage Unit High-capacity Matter Pod Structural Scanner Signal Interpreter Improved Terrain Scanner Seismic Detector Hardened Light Armor Plating Medium Laser Subdweller Beam Cannon Assault Rifle Subdweller Machine Gun Flamer Scrap Shield Fragment [Rating: 15] Favorites ----------- Power Heavy Ion Engine Engine Heavy Ion Engine Propulsion Aluminum Leg Treads Light Treads Leg Aluminum Leg Wheel Subdweller Monowheel Utility Seismic Detector Device Seismic Detector Storage High-capacity Storage Unit Protection Hardened Light Armor Plating Weapon Beam Cannon Energy Gun Riot Gun Energy Cannon Beam Cannon Ballistic Gun Assault Rifle Special Weapon Flamer Build | -11 -10 -10 ------- Run | Yrd Mat Sub Slots Evolved . | . . . Power . | . . . Propulsion . | . . . Utility . | . . . Weapon . | . . . Parts Attached 41 | 7 13 21 Power 4 | 1 3 . Engine 4 | 1 3 . Core . | . . . Reactor . | . . . Propulsion 7 | 2 2 3 Treads 3 | 2 . 1 Leg 2 | . 2 . Wheel 2 | . . 2 Hover . | . . . Flight . | . . . Utility 20 | 2 6 12 Device 8 | 1 2 5 Storage 5 | 1 3 1 Processor . | . . . Hackware . | . . . Protection 7 | . 1 6 Artifact . | . . . Weapon 10 | 2 2 6 Energy Gun 5 | 2 1 2 Energy Cannon 3 | . 1 2 Ballistic Gun 1 | . . 1 Ballistic Cannon . | . . . Launcher . | . . . Special Weapon 1 | . . 1 Impact Weapon . | . . . Slashing Weapon . | . . . Piercing Weapon . | . . . Special Melee Weapon . | . . . Unidentified Prototypes 1 | . 1 . Parts Lost 12 | . 2 10 Power 1 | . . 1 Propulsion 5 | . 1 4 Utility 1 | . 1 . Weapon 5 | . . 5 Highest Loss Streak 10 | . 1 10 To Critical Strikes 1 | . . 1 Average Slot Usage (%) 97 | . 93 99 Engine 13 | . 14 13 Treads 9 | . 27 . Leg 18 | . . 27 Device 10 | . 7 12 Storage 14 | . 14 14 Protection 1 | . 1 1 Energy Gun 16 | . 21 13 Energy Cannon 11 | . 6 13 Peak Build Rating 15 | 7 11 15 Average Rating 11 | 5 9 13 On Entrance 5 | . 7 10 Naked Turns . | . . . Heaviest Build 59 | 12 58 59 Greatest Support 40 | 40 40 20 Greatest Overweight (x) 2 | 1 1 2 Average Overweight (x) 1 | . . 1 Largest Inventory Capacity 20 | 8 20 20 Average Capacity 16 | 7 13 18 Most Carried 20 | 7 14 20 Average Carried 15 | 4 11 17 Final Capacity 20 | 8 15 20 Final Carried 13 | 7 12 13 Class Distribution -------------------- 100% | Mutant Dominant Class ---------------- Mutant | -10/Materials Mutant | -10/Subcaves Resources | -11 -10 -10 ----------- Run | Yrd Mat Sub Matter Collected 815 | 270 228 317 Remotely . | . . . Salvage Created 842 | 94 495 253 Parts 56 | 6 39 11 Haulers Intercepted . | . . . Recyclers Shooed 1 | 1 . . Parts Field Recycled . | . . . Retrieved Matter . | . . . Parts Self-Destructed 12 | . . 12 Prevented . | . . . Kills | -11 -10 -10 ------- Run | Yrd Mat Sub Combat Hostiles Destroyed 21 | . 15 6 Guns 16 | . 13 3 Cannons 5 | . 2 3 Classes Destroyed 8 | 2 4 2 Tunneler 3 | 1 2 . Recycler 1 | 1 . . Operator 2 | . 2 . Watcher 2 | . 2 . Swarmer 8 | . 7 1 Grunt 8 | . 8 . Sentry 1 | . . 1 Subdweller 4 | . . 4 Best Kill Streak 3 | 2 3 2 Combat Bots Only 3 | . 3 2 Max Kills in Single Turn 1 | 1 1 1 Gunslinging . | . . . Exploded . | . . . Melee . | . . . Uniques/NPCs Destroyed . | . . . Combat | -11 -10 -10 -------- Run | Yrd Mat Sub Hostile Shots Fired 152 | . 78 74 Missed 46 | . 25 21 Damage Taken 1719 | . 603 1116 Core 267 | . 134 133 Absorbed by Shields . | . . . Core Remaining (%) 100 | 100 . . Volleys Fired 100 | 3 59 38 Largest 2 | 2 2 2 Hottest 120 | 90 110 120 Shots Fired 193 | 6 117 70 Gun 145 | 6 94 45 Cannon 46 | . 23 23 Launcher . | . . . Special 2 | . . 2 Kinetic 15 | . . 15 Thermal 161 | 6 117 38 Explosive . | . . . Electromagnetic 17 | . . 17 Robot Hit Streak 32 | 2 13 32 Robot Miss Streak 6 | 1 6 2 Penetration Max . | . . . Secondary Targets 1 | . 1 . Max Gunslinging Chain 1 | . 1 . Shots Hit Robots 134 | 3 72 59 Core Hits 47 | 3 33 11 Critical Kills . | . . . Critical Parts Destroyed . | . . . Critical Strikes 5 | . 5 . Burn 5 | . 5 . Melee Attacks . | . . . Impact . | . . . Slashing . | . . . Piercing . | . . . Sneak Attacks . | . . . Combat Hostiles . | . . . Follow-up Attacks . | . . . Damage Inflicted 1486 | 37 955 494 Guns 998 | 37 726 235 Cannons 419 | . 229 190 Explosions 69 | . . 69 Melee . | . . . Ramming . | . . . Kinetic . | . . . Thermal 1313 | 37 955 321 Explosive . | . . . Electromagnetic 173 | . . 173 Impact . | . . . Slashing . | . . . Piercing . | . . . Highest Corruption . | . . . Average Corruption . | . . . Corruption Purged . | . . . Corruption Blocked . | . . . Overload Shots . | . . . Overflow Damage . | . . . Projectiles . | . . . Explosions . | . . . Melee . | . . . Knockbacks . | . . . Impact . | . . . Kinetic . | . . . Secondary . | . . . Self-Inflicted Damage . | . . . Shots . | . . . Rammed . | . . . Targets Rammed . | . . . Kicked . | . . . Crushed . | . . . Highest Temperature 510 | 90 510 60 Average Temperature 105 | 47 127 20 Received Heat Transfer 453 | . 180 273 Effects 6 | . 6 . Shutdowns 1 | . 1 . Energy Bleed 2 | . 2 . Matter Decay 1 | . 1 . Short Circuit 1 | . 1 . Damage (core) 1 | . 1 . Siege Activations . | . . . Robots Corrupted . | . . . Combat Hostiles . | . . . Parts Fried 1 | . . 1 Impact Corruptions . | . . . Robots Melted . | . . . Combat Hostiles . | . . . Parts Melted 6 | . 6 . Heat Transferred 3597 | 111 2844 642 Parts Sabotaged . | . . . Parts Stolen . | . . . Parts Stripped . | . . . Power Chain Reactions 1 | . . 1 Alert | -11 -10 -10 ------- Run | Yrd Mat Sub Peak Influence 180 | 10 180 . Initial 6 | . 6 . Average 76 | 5 81 . Maximum Alert Level . | . . . Low Security (%) 100 | 100 100 . Level 1 . | . . . Level 2 . | . . . Level 3 . | . . . Level 4 . | . . . Level 5 . | . . . High Security . | . . . Max Security . | . . . Squads Dispatched 4 | . 4 . Investigation 2 | . 2 . Extermination . | . . . Reinforcement 2 | . 2 . Assault . | . . . Garrison . | . . . Intercept . | . . . Searches Triggered . | . . . Construction Impeded . | . . . Haulers Reinforced . | . . . Active Scanning Responses . | . . . Cargo Convoy Interrupts . | . . . Stealth | -11 -10 -10 --------- Run | Yrd Mat Sub Distress Signals 2 | . 2 . Communications Jammed . | . . . Distress Signals . | . . . Times Spotted 35 | . 27 8 Peak Tracking Total 5 | . 5 2 Tactical Retreats 2 | . 2 . Traps | -11 -10 -10 ------- Run | Yrd Mat Sub Traps Triggered 3 | . 2 1 Indirectly . | . . . Trap Hack Attempts . | . . . Triggered . | . . . Disarmed . | . . . Reprogrammed . | . . . Reused . | . . . Traps Extracted . | . . . Installed . | . . . Triggered . | . . . Machines | -11 -10 -10 ---------- Run | Yrd Mat Sub Machines Disabled . | . . . Max in Single Turn . | . . . Machines Repaired . | . . . Machines Dismantled . | . . . Machines Sabotaged . | . . . Overloaded Fab Kills . | . . . Hacking | -11 -10 -10 --------- Run | Yrd Mat Sub Machines Accessed 7 | . 6 1 Terminals 6 | . 6 . Fabricators . | . . . Repair Stations . | . . . Recycling Units . | . . . Scanalyzers . | . . . Garrison Access . | . . . Total Hacks 22 | . 17 5 Successful 12 | . 7 5 Failed 10 | . 10 . Catastrophic 1 | . 1 . Database Lockouts . | . . . Manual 2 | . 2 . Terminals 17 | . 17 . Fabricators . | . . . Repair Stations . | . . . Recycling Units . | . . . Scanalyzers . | . . . Garrison Access . | . . . Terminal Hacks 12 | . 7 5 Record 5 | . . 5 Prototype ID Bank 2 | . 2 . Emergency Access Points 1 | . 1 . Locate Traps 1 | . 1 . Hauler Manifests 1 | . 1 . Zone Layout 2 | . 2 . Fabricator Hacks . | . . . Repair Station Hacks . | . . . Recycling Unit Hacks . | . . . Scanalyzer . | . . . Garrison Access Hacks . | . . . Unauthorized Hacks . | . . . Terminals . | . . . Fabricators . | . . . Repair Stations . | . . . Recycling Units . | . . . Scanalyzers . | . . . Garrison Access . | . . . Data Cores Recovered 1 | . 1 . Used . | . . . Hacking Detections 5 | . 5 . Full Trace Events 1 | . 1 . Feedback Events . | . . . Feedback Blocked . | . . . Robot Schematics Acquired . | . . . Robots Built . | . . . Authchips . | . . . Time . | . . . Total Robot Build Rating . | . . . Part Schematics Acquired . | . . . Parts Built . | . . . Authchips . | . . . Time . | . . . Total Part Build Rating . | . . . Parts Repaired . | . . . Time . | . . . Parts Recycled . | . . . Recycled Matter . | . . . Retrieved Matter . | . . . Retrieved Components . | . . . Parts Scanalyzed . | . . . Part Schematics Acquired . | . . . Parts Damaged . | . . . Bothacking | -11 -10 -10 ------------ Run | Yrd Mat Sub Used RIF Installer . | . . . Robots Hacked . | . . . Non-combat . | . . . Combat . | . . . Robot Hacks Applied . | . . . Relay Couplers Released . | . . . Fabnet Peak Effective % . | . . . Robots Rewired . | . . . Allies Hacked . | . . . Hacks Repelled . | . . . Allies | -11 -10 -10 -------- Run | Yrd Mat Sub Total Allies . | . . . Largest Group . | . . . Highest-Rated Group . | . . . Highest-Rated Ally . | . . . Total Orders . | . . . Ally Attacks . | . . . Total Damage . | . . . Kills . | . . . Allies Corrupted . | . . . Allies Melted . | . . . Intel | -11 -10 -10 ------- Run | Yrd Mat Sub Robot Analysis Total . | . . . Derelict Logs Recovered . | . . . Drone Launches . | . . . Drone Recoveries . | . . . Exploration | -11 -10 -10 ------------- Run | Yrd Mat Sub Turns Passed 5323 | 125 1731 3467 Spaces Moved 1941 | 67 568 1306 Core 8 | 8 . . Treads 625 | 59 566 . Legs 1308 | . 2 1306 Wheels . | . . . Hover . | . . . Flight . | . . . Fastest Speed 50 | 50 160 190 Average Speed 207 | 148 163 229 Slowest Speed 260 | 160 240 260 Overloaded Moves . | . . . Propulsion Burnouts . | . . . Robots Hopped . | . . . Cave-ins Triggered . | . . . Exploration Rate (%) 58 | 5 96 75 Regions Visited 2 Branch Regions 1 Pre-discovered Areas 1 | . . 1 Known Exits Taken . | . . . Unknown Exits Taken 2 | 1 1 . Scrap Searched . | . . . Spaces Dug . | . . . Terrain Destroyed 5 | . . 5 Melee . | . . . Projectile . | . . . AOE 5 | . . 5 Terrain Rammed . | . . . Walls Destroyed . | . . . Machines Disabled . | . . . Actions | -11 -10 -10 --------- Run | Yrd Mat Sub Total 3029 | 83 1257 1689 Wait 903 | . 591 312 Move 1939 | 66 567 1306 Hop . | . . . Pick Up 31 | 7 14 10 Fast Attach 8 | 7 1 . Attach 9 | . 2 7 Detach 1 | . 1 . Swap 24 | . 10 14 Drop 14 | . 12 2 Fire 100 | 3 59 38 Melee . | . . . Ram . | . . . Kick . | . . . Crush . | . . . Escape Stasis . | . . . Rewire . | . . . Trap . | . . . Miscellaneous . | . . . Route ------- -11/Scrapyard -10/Materials (discovered 5 exits: [*Mat x3] / [*Min] / *Sub) -10/Subcaves (discovered 1 exit: [*Mat]) History --------- Turn | Location | Event 6 | -11/Scrapyard | Discovered new exit (range 15) 126 | -11/Scrapyard | Entered Materials 300 | -10/Materials | Build established: Mutant 831 | -10/Materials | Discovered new exit (range 4) 1067 | -10/Materials | Discovered new exit (range 11) 1165 | -10/Materials | Discovered new exit (range 6) 1733 | -10/Materials | Discovered new exit (range 4) 1752 | -10/Materials | Discovered new exit (range 12) 1819 | -10/Materials | Core integrity fell below 50% 1857 | -10/Materials | Entered Subcaves 1952 | -10/Subcaves | Learned location of Zion (-6) 1952 | -10/Subcaves | Met a Zionite searching for "candidates" 2290 | -10/Subcaves | A swath of the cavern ceiling suddenly collapsed 2431 | -10/Subcaves | Shifting Twisted Machinery released Flamer 2448 | -10/Subcaves | Shifting Twisted Machinery released Riot Gun 2621 | -10/Subcaves | Shifting Twisted Machinery released Sub. Beam Cannon 2876 | -10/Subcaves | Discovered new exit (range 9) 4668 | -10/Subcaves | Visited Clippyterm 4676 | -10/Subcaves | Learned Research security intel 4676 | -10/Subcaves | Learned Factory garrison access intel 5279 | -10/Subcaves | Core integrity fell below 20% 5324 | -10/Subcaves | Destroyed by VM-4QK(R) with Subdweller Laser Last Messages --------------- It looks like you don't want to be "it," would you like help? Data stored: Factory garrison access intel. >>Record "Letterhead" It looks like you're writing a letter, sorry I don't know how to do that. >>Record "LRC-V1" It looks like you're REDACTED, I can suggest REDACTED and REDACTED. Also definitely avoid REDACTED. 05274_ Riot Gun destroyed. 05276_ Critical hit (Destroy). 05276_ Beam Cannon destroyed. 05290_ Aluminum Leg destroyed. 05300_ Med. Laser destroyed. 05303_ Lgt. Treads destroyed. 05314_ Sub. Monowheel destroyed. 05315_ Flamer destroyed. 05318_ Hvy. Ion Engine destroyed. 05321_ Assault Rifle destroyed. Map ----- +----------------------------------------------------+ | #? ## ???????????????????????????????? | | # #? ## ???????????????????????????????? | | # ##?# """#??????????????????????????????? | | # ## " "#??????????????????????????????? | | """""?????????????????????????????? | | """?????????????????????????????? | | "" "???????????????????????????? | | " "???????????????????????????? | | #### """???????????????????????????? | | ?### ""???????????????????????????? | | ## ##### ""???????????????????????????? | | # ##????# ### ""???????????????????????????? | | #??????##??????"#????????????????????????? | | #??????????????" ##??????????????????????? | | ##??????????????"" #??????????????????????? | | #??????????????? " #??????????????????????? | | # ##???????????????# #??????????????????????? | | ## ##??????????????? ?##???????????????????? | | ### #??????????????## ## ###?? ? %???????????? | | #### #??????????????? ## ??????????? | | #?# ##????????????#### # ??????????? | | ??# ##???????????## ## ????????????? | | ??# #???????????# ?????????????? | | ??# ##??????????## """ #????????????????? | | ??# #?????????## R " #????????????????? | | ??# ##?????????# @ #####????????????????? | | ??## ########??# ##????????????????????? | | ??# # ## ##?# #?????????????????????? | | ??## ### R##????????????????????? | | ??# ### """ #????????????????????? | | ??### # ## ## "" " ?????????????????? | | ????######### "" " " ?????????????????? | | ????????????# ### ## "##?????????????????? | | ????????????##### ##?#####?###??????????????????? | | ????????????????####?????????????????????????????? | | ?????????????????????????????????????????????????? | | ?????????????????????????????????????????????????? | | ?????????????????????????????????????????????????? | | ?????????????????????????????????????????????????? | | ?????????????????????????????????????????????????? | | ?????????????????????????????????????????????????? | | ?????????????????????????????????????????????????? | | ?????????????????????????????????????????????????? | | ?????????????????????????????????????????????????? | | ?????????????????????????????????????????????????? | | ?????????????????????????????????????????????????? | | ?????????????????????????????????????????????????? | | ?????????????????????????????????????????????????? | | ?????????????????????????????????????????????????? | | | +----------------------------------------------------+ Best States ------------- Heat Dissipation 25 Energy Generation 14 Energy Capacity 280 Matter Stores 300 Matter Capacity 300 Sight Range 16 Terrain Scan Density 10 Armor Coverage 225 Evasion (%) 40 Recoil Reduction 2 Item Schematics ----------------- None Robot Schematics ------------------ None Fabricated ------------ Nothing Alien Tech Used ----------------- None Achievements -------------- None Challenges ------------ None Game ------ Seed TargetingSuspensionScanner Manual? 0 Play Time 00:31:00 Cumulative 30.1 hours Start 2024.11.21 @ 11:56:10 End 2024.11.21 @ 12:27:17 Sessions 1 Manual Loads 0 Difficulty Rogue Special Mode None Game No. 41 Rogue 41 Adventurer 0 Explorer 0 Win Type - Total 0 Types 0/0/0/0/0/0/0/0/0 Lore% 33 Gallery% 31 Achievement% 25 Wizard Run 0 Options --------- Layout 2 ASCII 0 Keyboard 0 Movement Numpad Keybinds 0 Fullscreen 1 Font 24/Smallcaps Map View 50x44 Zoom Use 0% Tactical HUD 1 Map Filters NONE Filters NONE Steam 1 RUN: 022e6070-1050-4172-97d8-e26457b30b36